{"text_format":"1","workbook":"xlsx","n_sheets":2,"sheets":["Decembre","Feuil1"],"not_rendered":{"charts":0,"images":0,"macros":1,"external_links":0,"defined_names":0,"comments":0,"pivot_tables":0},"unopened":[],"bounds":{"document_bytes":16777216,"sheet_cells":100000,"rows_first":2000,"rows_last":500,"rows_between":2000,"halvings":0,"cell_chars":16384,"cell_head_chars":4096},"cells_cut":0,"cells_raw":0,"read":"whole","date_system":"1900"}

{"sheet":"Decembre","index":0,"n_rows":29,"n_cols":39,"rows_kept":29,"cut":false,"hidden":false,"merged":[[0,1,0,11],[4,28,4,31],[4,32,4,35]]}
["ROUTE DECEMBRE ",{"$f":"#REF!","v":{"$error":"#REF!"}},null,null,null,null,null,null,null,null,null,null,"sorties du MARDI-JEUDI-DIMANCHE & FERIES",null,null,null,null,null,null,null,null,null,null,null,null,null,"Kms","Sorties","Dimanche","Mar.Jeu","Férié","R\n20 P"]
["DATE",null,null,null,null,null,null,null,null,null,null,null,null,null,null,null,null,null,null,null,null,null,null,null,null,null,null,null,null,null,null,null,null,null,null,null,null,null,"10 Points"]
["KM",null,null,null,null,null,null,null,null,null,null,null,null,null,null,null,null,null,null,null,null,null,null,null,null,null,{"$f":"SUM(B3:Z3)","v":0},null,null,null,null,null,null,null,null,null,null,null,"20 Points"]
["BREVET",null,null,null,null,null,null,null,null,null,null,null,null,null,null,null,null,null,null,null,null,null,null,null,null,null,null,null,null,null,null,null,null,null,null,null,null,null,"40 Points"]
["NOM",null,null,null,null,null,null,null,null,null,null,null,null,null,null,null,null,null,null,null,null,null,null,null,null,null,{"$f":"IF(SUM(B5:Z5)=0,\"\",SUM(B5:Z5))","v":""},{"$f":"IF(SUM(B5:Z5)=0,\"\",COUNTA(B5:Z5))","v":""},"Nombre",null,null,null,"Points",null,null,null,"T",null,"15 Points"]
["Courreur 1",10,20,30,null,10,10,10,10,20,10,20,30,30,10,10,null,null,null,null,null,null,null,null,null,null,{"$f":"IF(SUM(B6:Z6)=0,\"\",SUM(B6:Z6))","v":230},{"$f":"IF(SUM(B6:Z6)=0,\"\",COUNTA(B6:Z6))","v":14},{"$f":"SommeCouleurFond(B6:Z6,$AL$5)","v":1},{"$f":"SommeCouleurFond(B6:Z6,$AL$2)","v":2},{"$f":"SommeCouleurFond(B6:Z6,$AL$4)","v":0},{"$f":"SommeCouleurFond(B6:Z6,$AL$3)","v":1},{"$f":"+AC6*15","v":15},{"$f":"+AD6*10","v":20},{"$f":"+AE6*40","v":0},{"$f":"+AF6*40","v":40},{"$f":"SUM(AG6:AJ6)","v":75}]
["Courreur 2",null,null,null,null,20,null,30,null,null,null,null,null,null,null,10,null,null,null,null,null,null,null,null,null,null,{"$f":"IF(SUM(B7:Z7)=0,\"\",SUM(B7:Z7))","v":60},{"$f":"IF(SUM(B7:Z7)=0,\"\",COUNTA(B7:Z7))","v":3},{"$f":"SommeCouleurFond(B7:Z7,$AL$5)","v":0},1,{"$f":"SommeCouleurFond(B7:Z7,$AL$4)","v":0},{"$f":"SommeCouleurFond(B7:Z7,$AL$3)","v":0},{"$f":"+AC7*15","v":0},{"$f":"+AD7*10","v":10},{"$f":"+AE7*40","v":0},{"$f":"+AF7*40","v":0},{"$f":"SUM(AG7:AJ7)","v":10}]
["Courreur 3",null,null,null,null,null,null,null,null,null,null,null,null,null,null,10,null,null,null,null,null,null,null,null,null,null,{"$f":"IF(SUM(B8:Z8)=0,\"\",SUM(B8:Z8))","v":10},{"$f":"IF(SUM(B8:Z8)=0,\"\",COUNTA(B8:Z8))","v":1},{"$f":"SommeCouleurFond(B8:Z8,$AL$5)","v":0},0,0,0,{"$f":"+AC8*15","v":0},{"$f":"+AD8*10","v":0},{"$f":"+AE8*40","v":0},0,{"$f":"SUM(AG8:AJ8)","v":0}]
["Courreur 4",null,null,null,null,null,null,null,null,null,null,null,null,null,null,10,null,null,null,null,null,null,null,null,null,null,10,1,0,0,0,0,0,0,0,0,0]
["Courreur 5",null,null,null,null,null,null,null,null,null,null,null,null,null,null,10,null,null,null,null,null,null,null,null,null,null,{"$f":"IF(SUM(B10:Z10)=0,\"\",SUM(B10:Z10))","v":10},1,0,0,0,0,0,0,0,0,0]
["Courreur 6",null,null,null,null,null,null,null,null,null,null,null,null,null,null,null,null,null,null,null,null,null,null,null,null,null,{"$f":"IF(SUM(B11:Z11)=0,\"\",SUM(B11:Z11))","v":""},"",0,0,0,0,0,0,0,0,0]
["Courreur 7",null,null,null,null,null,null,null,null,null,null,null,null,null,null,null,null,null,null,null,null,null,null,null,null,null,{"$f":"IF(SUM(B12:Z12)=0,\"\",SUM(B12:Z12))","v":""},"",0,0,0,0,0,0,0,0,0]
["Courreur 8",null,null,null,null,null,null,null,null,null,null,null,null,null,null,null,null,null,null,null,null,null,null,null,null,null,"","",0,0,0,0,0,0,0,0,0]
["Courreur 9",null,null,null,null,null,null,null,null,null,null,null,null,null,null,null,null,null,null,null,null,null,null,null,null,null,"","",0,0,0,0,0,0,0,0,0]
["Courreur 10",null,null,null,null,null,null,null,null,null,null,null,null,null,null,null,null,null,null,null,null,null,null,null,null,null,"","",0,0,0,0,0,0,0,0,0]
["Courreur 11",null,null,null,null,null,null,null,null,null,null,null,null,null,null,null,null,null,null,null,null,null,null,null,null,null,"","",0,0,0,0,0,0,0,0,0]
["Courreur 12",null,null,null,null,null,null,null,null,null,null,null,null,null,null,null,null,null,null,null,null,null,null,null,null,null,"","",0,0,0,0,0,0,0,0,0]
["Courreur 13",null,null,null,null,null,null,null,null,null,null,null,null,null,null,null,null,null,null,null,null,null,null,null,null,null,"","",0,0,0,0,0,0,0,0,0]
["Courreur 14",null,null,null,null,null,null,null,null,null,null,null,null,null,null,null,null,null,null,null,null,null,null,null,null,null,"","",0,0,0,0,0,0,0,0,0]
["Courreur 15",null,null,null,null,null,null,null,null,null,null,null,null,null,null,null,null,null,null,null,null,null,null,null,null,null,"","",0,0,0,0,0,0,0,0,0]
[null,null,null,null,null,null,null,null,null,null,null,null,null,null,null,null,null,null,null,null,null,null,null,null,null,null,"","",0,0,0,0,0,0,0,0,0]
[null,null,null,null,null,null,null,null,null,null,null,null,null,null,null,null,null,null,null,null,null,null,null,null,null,null,null,"",0,0,0,0,0,0,0,0,0]
[null,null,null,null,null,null,null,null,null,null,null,null,null,null,null,null,null,null,null,null,null,null,null,null,null,null,"","",0,0,0,0,0,0,0,0,0]
[null,null,null,null,null,null,null,null,null,null,null,null,null,null,null,null,null,null,null,null,null,null,null,null,null,null,"","",0,0,0,0,0,0,0,0,0]
[null,null,null,null,null,null,null,null,null,null,null,null,null,null,null,null,null,null,null,null,null,null,null,null,null,null,"","",0,0,0,0,0,0,0,0,0]
[null,null,null,null,null,null,null,null,null,null,null,null,null,null,null,null,null,null,null,null,null,null,null,null,null,null,"","",0,0,0,0,0,0,0,0,0]
[null,null,null,null,null,null,null,null,null,null,null,null,null,null,null,null,null,null,null,null,null,null,null,null,null,null,{"$f":"SUM(AA6:AA26)","v":320}]
["Kms par sortie ",{"$f":"SUM(B6:B26)","v":10},20,30,0,30,10,40,10,20,10,20,30,30,10,50,0,0,0,0,0,0,0,0,0,0,{"$f":"SUM(B28:Z28)","v":320}]
["Nombre de sortants",{"$f":"COUNTA(B6:B26)","v":1},{"$f":"COUNTA(C6:C26)","v":1},1,0,2,1,2,1,1,1,1,1,1,1,5,0,0,0,0,0,0,0,0,0,0,{"$f":"SUM(B29:Z29)","v":20}]

{"sheet":"Feuil1","index":1,"n_rows":6,"n_cols":10,"rows_kept":6,"cut":false,"hidden":false,"merged":[]}
[]
[]
[]
[]
[]
[null,null,null,null,null,null,null,null,null,10]